bitfinex-derivatives/quotes_SOLF0:USTF0_20240913
["timestamp","ask_amount","ask_price","bid_price","bid_amount"]
[1726230877098,11.62,132.35,132.3,11.62]
[1726230877592,3.7788,132.31,132.3,11.62]
[1726230878001,11.62,132.34,132.3,11.62]
[1726230878002,3.7786,132.32,132.3,11.62]
[1726230878493,3.7783,132.33,132.31,11.62]
[1726230878999,3.7783,132.33,132.28,1.3761]
[1726230879199,3.7783,132.33,132.31,11.62]
[1726230879899,3.7783,132.33,132.31,15.3986]
[1726230880098,11.62,132.36,132.31,15.3986]
[1726230880587,3.7781,132.34,132.32,3.7785]
[1726230881189,3.7781,132.34,132.32,15.3985]
[1726230882000,3.7781,132.34,132.32,11.62]
[1726230882700,3.7781,132.34,132.32,15.3985]
[1726230883094,3.7781,132.34,132.32,11.62]
[1726230884597,3.7781,132.34,132.32,15.3984]
[1726230885004,3.7781,132.34,132.32,11.62]
[1726230885593,3.7775,132.36,132.33,11.62]
[1726230885794,1.3465,132.4,132.35,11.62]
[1726230885999,5.20245463,132.4,132.37,11.62]
[1726230886195,3.7771,132.37,132.36,11.62]
[1726230887606,3.7769,132.38,132.36,11.62]
[1726230887806,3.7769,132.38,132.37,11.62]
[1726230888203,11.62,132.42,132.37,11.62]
[1726230888406,11.62,132.42,132.38,11.62]
[1726230888612,11.62,132.41,132.37,11.62]
[1726230889207,3.7767,132.39,132.37,11.62]
[1726230889406,3.7767,132.39,132.38,11.62]
[1726230889805,3.776,132.41,132.38,11.62]
[1726230890007,3.776,132.41,132.39,11.62]
[1726230890616,3.7758,132.42,132.39,11.62]
[1726230891011,3.7758,132.42,132.41,11.62]
[1726230891410,3.7755,132.43,132.41,11.62]
[1726230892113,3.7756,132.42,132.41,11.62]
[1726230892714,12.9435,132.45,132.41,11.62]
[1726230892715,3.7754,132.43,132.41,11.62]
[1726230893615,3.7751,132.44,132.42,11.62]
[1726230893825,3.7751,132.44,132.43,11.62]
[1726230894018,3.7749,132.45,132.43,11.62]
[1726230894613,11.62,132.44,132.34,7.5557]
[1726230894812,11.62,132.41,132.33,4.1796]
[1726230895014,11.62,132.41,132.36,11.62]
[1726230895214,18.3336751,132.48,132.33,4.1796]
[1726230895215,11.62,132.4,132.33,4.1796]
[1726230895421,11.62,132.39,132.34,11.62]
[1726230895721,11.62,132.39,132.35,15.3975]
[1726230895722,3.7769,132.38,132.35,15.3975]
[1726230895921,11.62,132.39,132.26,236.5602]
[1726230896121,3.80015111,132.38,132.27,4.2263]
[1726230896525,11.62,132.38,132.33,11.62]
[1726230896714,11.62,132.38,132.34,11.62]
[1726230897718,3.7776,132.36,132.34,11.62]
[1726230900423,3.7776,132.35,132.34,11.62]
[1726230900720,11.62,132.36,132.31,11.62]
[1726230900923,3.7781,132.34,132.31,11.62]
[1726230901123,3.7781,132.34,132.31,15.3987]
[1726230901329,19.67359032,132.41,132.32,11.62]
[1726230901626,3.7778,132.35,132.32,15.3983]
[1726230901824,11.62,132.36,132.32,11.62]
[1726230902122,3.7787,132.32,132.29,3.7792]
[1726230902326,3.7787,132.32,132.29,15.3992]
[1726230902621,3.7791,132.3,132.28,11.62]
[1726230903126,3.7793,132.29,132.28,11.62]
[1726230903314,11.62,132.3,132.24,1.4367]
[1726230903514,11.62,132.3,132.25,11.62]
[1726230903814,3.7795,132.29,132.27,11.62]
[1726230904217,1.3345,132.32,132.27,18.14]
[1726230904730,1.3345,132.32,132.29,18.14]
[1726230905325,3.7789,132.31,132.29,18.14]
[1726230905925,1.3345,132.32,132.27,18.14]
[1726230906528,18.14,132.31,132.24,1.4367]
[1726230907035,3.7801,132.27,132.24,19.5767]
[1726230907218,1.3345,132.32,132.25,18.14]
[1726230907929,1.3345,132.32,132.25,21.9202]
[1726230908124,1.3345,132.32,132.25,18.14]
[1726230908820,3.7791,132.3,132.25,18.14]
[1726230909026,1.3345,132.32,132.26,3.7802]
[1726230909229,1.3345,132.32,132.25,18.14]
[1726230909721,3.7798,132.28,132.25,21.9203]
[1726230909931,18.14,132.31,132.24,19.5767]
[1726230910128,18.14,132.31,132.22,19.5596]
[1726230910329,18.14,132.29,132.23,3.7809]
[1726230910835,18.14,132.29,132.24,3.7807]
[1726230911336,3.7806,132.25,132.22,21.9212]
[1726230912232,18.14,132.29,132.21,3.7814]
[1726230912534,18.14,132.29,132.2,18.14]
[1726230912729,18.14,132.28,132.19,2.8271]
[1726230912927,18.14,132.28,132.2,18.14]
[1726230913136,19.5401,132.3,132.22,18.14]
[1726230913434,19.5401,132.3,132.24,3.7807]
[1726230913435,3.7801,132.27,132.24,3.7807]
[1726230913633,19.5401,132.3,132.24,3.7807]
[1726230913840,3.7806,132.25,132.22,21.9212]
[1726230914840,3.7808,132.24,132.22,3.7812]
[1726230915137,19.5401,132.3,132.21,18.14]
[1726230915338,3.7803,132.26,132.21,18.14]
[1726230915541,19.5401,132.3,132.23,3.781]
[1726230916335,3.7798,132.28,132.24,18.14]
[1726230916833,3.7795,132.29,132.24,18.14]
[1726230917027,1.3246,132.31,132.24,18.14]
[1726230917833,3.7798,132.28,132.25,3.7803]
[1726230918427,1.3246,132.31,132.24,18.14]
[1726230919025,18.14,132.29,132.22,18.14]
[1726230919231,18.14,132.29,132.19,2.8271]
[1726230919232,18.14,132.29,132.2,18.14]
[1726230919440,18.14,132.28,132.19,20.9671]
[1726230919939,3.7812,132.23,132.2,3.7818]
[1726230920539,18.14,132.26,132.19,24.7492]
[1726230920837,18.14,132.26,132.18,1.4293]
[1726230921038,3.7815,132.22,132.19,3.782]
[1726230921943,3.7815,132.22,132.18,1.4293]
[1726230921944,3.7815,132.22,132.2,3.7819]
[1726230922139,1.3474,132.25,132.18,19.5693]
[1726230923445,3.7814,132.22,132.19,3.782]
[1726230926055,21.9215,132.22,132.16,1.3682]
[1726230926238,18.14,132.22,132.16,1.3682]
[1726230926541,18.14,132.24,132.16,1.3682]
[1726230926736,3.7819,132.2,132.17,3.7826]
[1726230927338,3.7818,132.21,132.16,1.3682]
[1726230927938,3.7818,132.21,132.18,3.7823]
[1726230929140,3.7819,132.2,132.18,3.7823]
[1726230929442,18.14,132.24,132.18,3.7823]
[1726230929648,3.7814,132.22,132.2,3.7818]
[1726230929850,3.7814,132.22,132.17,18.14]
[1726230930153,18.14,132.24,132.17,18.14]
[1726230930541,3.7814,132.22,132.19,3.7822]
[1726230930938,3.7814,132.22,132.17,18.14]
[1726230931136,3.7814,132.22,132.19,3.782]
[1726230931848,1.3474,132.25,132.19,18.14]
[1726230932048,3.75794741,132.26,132.2,1.3425]
[1726230932853,3.7809,132.24,132.21,3.7815]
[1726230935753,3.7806,132.25,132.22,3.7812]
[1726230935954,18.14,132.29,132.21,18.14]
[1726230936267,18.14,132.29,132.21,19.5309]
[1726230936448,3.7805,132.25,132.22,3.7812]
[1726230936855,3.7805,132.25,132.23,3.781]
[1726230938652,21.88877377,132.27,132.21,1.3909]
[1726230938849,18.14,132.27,132.21,1.3909]
[1726230939251,3.781,132.24,132.21,5.1723]
[1726230940955,3.781,132.24,132.22,3.7813]
[1726230941156,18.14,132.29,132.21,19.5309]
[1726230941756,3.7804,132.26,132.23,3.781]
[1726230943458,3.7805,132.25,132.23,3.781]
[1726230943965,18.14,132.29,132.23,3.781]
[1726230944261,3.7805,132.26,132.23,3.781]
[1726230944956,3.7806,132.25,132.23,3.781]
[1726230945757,18.14,132.29,132.23,3.781]
[1726230945965,3.7802,132.26,132.23,3.7809]
[1726230946954,3.7805,132.25,132.23,3.7809]
[1726230948662,18.14,132.29,132.21,19.5309]
[1726230949456,3.7805,132.25,132.23,3.781]
[1726230949657,18.14,132.29,132.23,3.781]
[1726230950050,3.7799,132.28,132.23,3.781]
[1726230950254,3.69562797,132.27,132.23,3.781]
[1726230950560,18.14,132.29,132.23,3.781]
[1726230950758,3.7802,132.26,132.21,19.5309]
[1726230951460,3.7802,132.26,132.23,3.7809]
[1726230953058,3.84352875,132.27,132.21,19.5309]
[1726230953253,18.14,132.29,132.21,19.5309]
[1726230953656,3.7807,132.25,132.22,3.7812]
[1726230953861,3.78858958,132.26,132.2,1.3425]
[1726230954062,11.62,132.24,132.2,12.9625]
[1726230954264,11.62,132.24,132.2,1.3425]
[1726230954459,11.62,132.24,132.2,12.9625]
[1726230954766,15.401,132.24,132.21,3.7815]
[1726230954963,11.62,132.24,132.21,3.7815]
[1726230955458,3.7811,132.23,132.2,5.1242]
[1726230955660,3.7811,132.23,132.2,1.3425]
[1726230955968,3.7811,132.23,132.2,12.9625]
[1726230956168,3.7811,132.23,132.2,1.3425]
[1726230956364,3.781,132.24,132.21,3.7815]
[1726230957062,3.7811,132.23,132.21,3.7815]
[1726230957457,18.16,132.24,132.19,3.7819]
[1726230957658,18.16,132.23,132.19,3.7819]
[1726230958355,18.16,132.23,132.16,1.3382]
[1726230958858,18.16,132.24,132.16,19.4982]
[1726230959058,3.7809,132.24,132.18,18.16]
[1726230959258,19.5421,132.26,132.18,18.16]
[1726230959564,3.7806,132.25,132.22,3.7811]
[1726230959976,3.73316179,132.27,132.2,18.16]
[1726230960270,18.16,132.28,132.2,18.16]
[1726230960663,18.16,132.26,132.21,3.7814]
[1726230960858,3.84221884,132.25,132.21,3.7814]
[1726230961164,3.84221884,132.25,132.18,18.16]
[1726230961369,3.7808,132.24,132.18,18.16]
[1726230961767,3.84221884,132.25,132.18,18.16]
[1726230961962,3.781,132.24,132.18,18.16]
[1726230962163,3.84221884,132.25,132.18,18.16]
[1726230962363,18.16,132.25,132.17,18.16]
[1726230962657,18.16,132.23,132.16,1.3382]
[1726230963270,3.7818,132.21,132.18,3.7824]
[1726230963461,18.16,132.23,132.16,1.3382]
[1726230963663,18.16,132.21,132.16,1.3382]
[1726230963963,18.16,132.21,132.16,5.1211]
[1726230964267,18.16,132.21,132.16,1.3382]
[1726230964475,3.782,132.2,132.17,3.7825]
[1726230964973,3.7817,132.21,132.16,1.3382]
[1726230965569,3.7817,132.21,132.18,3.7823]
[1726230965761,18.16,132.23,132.18,3.7823]
[1726230966364,3.7819,132.21,132.18,3.7823]
[1726230967271,3.7819,132.2,132.18,3.7823]
[1726230968369,18.16,132.23,132.16,1.3382]
[1726230969174,18.16,132.23,132.19,3.782]
[1726230969175,3.7816,132.21,132.19,3.782]
[1726230969578,3.7816,132.21,132.16,1.3382]
[1726230969975,18.16,132.23,132.17,3.7825]
[1726230970372,3.7821,132.2,132.17,3.7825]
[1726230970579,3.7821,132.2,132.18,3.7824]
[1726230971379,3.7817,132.21,132.18,3.7824]
[1726230973380,3.7817,132.21,132.16,1.3382]
[1726230974286,3.7817,132.21,132.18,3.7824]
[1726230975573,3.782,132.2,132.18,3.7824]
[1726230976883,3.7818,132.21,132.18,3.7824]
[1726230977582,3.782,132.2,132.18,3.7824]
[1726230977787,18.16,132.21,132.17,3.7826]
[1726230978883,18.16,132.21,132.16,1.3382]
[1726230979681,3.7822,132.2,132.17,3.7826]
[1726230980780,3.7822,132.19,132.17,3.7826]
[1726230982187,18.16,132.21,132.17,3.7826]
[1726230982388,18.16,132.21,132.16,5.1211]
[1726230982877,3.7823,132.19,132.16,5.1211]
[1726230983078,3.7823,132.19,132.16,3.7829]
[1726230984281,18.16,132.21,132.13,18.16]
[1726230984485,11.63,132.19,132.15,11.63]
[1726230984683,3.7825,132.18,132.16,3.783]
[1726230984883,3.7825,132.18,132.15,11.63]
[1726230985490,3.7825,132.18,132.15,15.4131]
[1726230985685,15.4129,132.17,132.12,2.8207]
[1726230985880,11.63,132.17,132.13,11.63]
[1726230986088,11.63,132.16,132.13,3.7838]
[1726230986288,15.4132,132.16,132.13,3.7838]
[1726230986487,15.4132,132.16,132.12,2.8207]
[1726230986888,15.4132,132.16,132.13,3.7839]
[1726230987987,15.4132,132.16,132.14,3.7836]
[1726230988198,11.63,132.16,132.14,3.7836]
[1726230988803,11.63,132.16,132.13,3.7838]
[1726230989097,15.4132,132.16,132.13,3.7838]
[1726230990988,11.63,132.16,132.12,6.6048]
[1726230991184,11.63,132.14,132.09,11.63]
[1726230991591,15.4137,132.14,132.09,11.63]
[1726230992198,15.4137,132.14,132.11,3.7843]
[1726230993412,3.7839,132.13,132.11,3.7843]
[1726230993601,11.63,132.14,132.11,3.7843]
[1726230993801,11.63,132.14,132.09,11.63]
[1726230993999,3.7841,132.13,132.09,11.63]
[1726230994197,15.4141,132.13,132.09,11.63]
[1726230994405,15.4141,132.13,132.1,3.7846]
[1726230996203,11.63,132.12,132.08,2.692]
[1726230996810,15.4144,132.12,132.09,3.7849]
[1726230996998,11.63,132.12,132.08,2.692]
[1726230997498,15.4143,132.12,132.09,3.7849]
[1726230997699,11.63,132.1,131.97,229.0]
[1726230997900,11.63,132.09,132.0,4.1147]
[1726230998098,11.63,132.09,132.05,11.63]
[1726230998408,15.4144,132.12,132.08,3.7851]
[1726230999005,11.63,132.1,132.07,3.7855]
[1726230999202,11.63,132.1,132.06,11.63]
[1726231000909,11.63,132.1,132.07,3.7856]
[1726231002198,11.63,132.09,132.04,11.63]
[1726231002402,11.63,132.08,132.04,11.63]
[1726231002813,11.63,132.08,132.05,3.786]
[1726231003002,11.63,132.08,132.0,7.87540259]
[1726231003203,11.63,132.08,132.04,11.63]
[1726231003402,11.63,132.08,132.06,3.7859]
[1726231004908,11.63,132.08,132.05,3.7861]
[1726231006110,15.4154,132.08,132.05,3.7861]
[1726231006805,15.4157,132.07,132.04,3.7864]
[1726231007202,11.63,132.07,132.04,3.7864]
[1726231008004,7.51798926,132.08,132.04,3.7864]
[1726231008313,11.63,132.07,132.04,3.7864]
[1726231008609,1.3977,132.13,132.04,11.63]
[1726231008809,1.3977,132.13,132.07,11.63]
[1726231009001,15.43360505,132.12,132.07,11.63]
[1726231009204,19.21800505,132.12,132.08,3.7851]
[1726231009415,15.43360505,132.12,132.08,3.7851]
[1726231010107,3.7846,132.11,132.08,3.7851]
[1726231010307,11.63,132.13,132.1,3.7848]
[1726231010699,3.7842,132.12,132.09,11.63]
[1726231010903,11.63,132.13,132.09,11.63]
[1726231011111,3.7841,132.13,132.09,11.63]
[1726231011322,11.63,132.16,132.12,3.7842]
[1726231011506,11.63,132.16,132.12,11.63]
[1726231012113,19.5259,132.18,132.1,18.18]
[1726231012506,1.3459,132.18,132.08,22.3632]
[1726231012711,18.18,132.16,132.08,22.3632]
[1726231013412,3.7838,132.14,132.11,3.7843]
[1726231014401,3.83680424,132.15,132.08,22.3632]
[1726231014606,18.18,132.14,132.08,4.1832]
[1726231014905,3.7842,132.12,132.09,3.7849]
[1726231017303,3.784,132.13,132.1,3.7848]
[1726231017509,3.87845513,132.15,132.08,22.3632]
[1726231017708,18.18,132.16,132.08,4.1832]
[1726231017909,3.7843,132.12,132.09,3.785]
[1726231018110,3.78512474,132.12,132.08,4.1832]
[1726231018420,7.52408507,132.12,132.08,7.9683]
[1726231018908,7.52408507,132.12,132.08,6.5971]
[1726231019316,3.7846,132.11,132.08,6.5971]
[1726231021319,18.18,132.11,132.04,18.18]
[1726231021521,18.18,132.1,132.02,20.9848]
[1726231021707,18.18,132.14,132.03,3.7866]
[1726231021708,3.7861,132.06,132.03,3.7866]
[1726231021910,3.7861,132.06,132.02,2.8048]
[1726231021911,18.18,132.08,132.02,2.8048]
[1726231022217,1.417,132.11,132.04,18.18]
[1726231022218,3.7852,132.09,132.04,18.18]
[1726231022418,2.704,132.13,132.05,18.18]
[1726231022718,1.3544,132.13,132.05,18.18]
[1726231023322,3.7846,132.11,132.07,3.7855]
[1726231023523,1.3544,132.13,132.07,3.7855]
[1726231024117,3.7849,132.1,132.07,3.7855]
[1726231024314,18.18,132.12,132.05,3.786]
[1726231024817,18.18,132.1,132.04,3.7864]
[1726231025212,18.18,132.08,132.02,2.8048]
[1726231025415,18.18,132.08,132.03,3.7866]
[1726231025929,3.7858,132.07,132.04,3.7865]
[1726231026116,18.18,132.08,132.02,2.8048]
[1726231026328,3.7867,132.04,131.94,11.3677]
[1726231026627,22.00036192,132.06,131.97,1.3524]
[1726231026819,18.18,132.06,131.97,1.3524]
[1726231027132,18.18,132.06,132.01,3.7872]
[1726231027318,21.8939251,132.06,132.01,3.7872]
[1726231027722,1.4429,132.11,132.0,18.18]
[1726231028024,1.4429,132.11,131.97,1.3524]
[1726231028025,19.6229,132.11,132.02,18.18]
[1726231028215,3.7854,132.08,132.02,18.18]
[1726231028419,3.7854,132.08,132.03,1.3524]
[1726231028620,3.7854,132.08,132.04,3.7864]
[1726231028925,3.7849,132.1,132.03,19.5324]
[1726231029117,1.4429,132.11,132.03,19.5324]
[1726231029320,1.4429,132.11,132.06,3.7858]
[1726231029523,3.7852,132.09,132.03,19.5324]
[1726231029726,3.7852,132.09,132.06,3.7858]
[1726231029925,1.4429,132.11,132.06,3.7858]
[1726231030115,3.785,132.1,132.06,3.7858]
[1726231030428,19.5344,132.13,132.03,19.5324]
[1726231030835,3.7847,132.11,132.07,3.7854]
[1726231031132,18.18,132.13,132.06,1.3735]
[1726231031633,18.18,132.13,132.08,3.7851]
[1726231032223,3.7843,132.12,132.08,3.7851]
[1726231032419,21.94998435,132.15,132.09,3.785]
[1726231032728,3.7837,132.14,132.07,18.18]
[1726231032931,18.18,132.16,132.11,3.7843]
[1726231033426,18.18,132.19,132.1,19.5591]
[1726231034518,18.18,132.2,132.11,1.4532]
[1726231034723,3.7831,132.16,132.12,3.784]
[1726231034925,18.18,132.19,132.11,1.4532]
[1726231035327,3.7829,132.17,132.13,3.7837]
[1726231035531,18.18,132.19,132.13,3.7837]
[1726231035833,18.18,132.17,132.11,1.4532]
[1726231036033,3.7834,132.15,132.12,3.7841]
[1726231036327,3.7834,132.15,132.1,1.3791]
[1726231036522,3.7834,132.15,132.11,3.7843]
[1726231036929,3.7837,132.14,132.1,1.3791]
[1726231037124,3.7837,132.14,132.1,5.1637]
[1726231037331,3.7837,132.14,132.1,1.3791]
[1726231037731,3.7839,132.13,132.1,1.3791]
[1726231037920,18.18,132.15,132.07,2.8737]
[1726231038128,22.05966651,132.15,132.07,2.8737]
[1726231038331,3.7846,132.11,132.07,2.8737]
[1726231039430,18.18,132.13,132.07,2.8737]
[1726231040024,3.7843,132.12,132.07,2.8737]
[1726231040619,3.7843,132.12,132.08,3.7852]
[1726231043724,3.7843,132.12,132.09,3.785]
[1726231046433,3.7846,132.11,132.08,3.7852]
[1726231046734,3.7846,132.11,132.06,1.3735]
[1726231046735,18.18,132.11,132.06,1.3735]
[1726231047339,3.7849,132.1,132.07,3.7855]
[1726231050044,18.18,132.13,132.06,1.3735]
[1726231050433,18.18,132.13,132.08,3.7853]
[1726231051037,18.18,132.13,132.09,3.7849]
[1726231051240,1.4175,132.14,132.07,18.18]
[1726231051440,1.4175,132.14,132.09,18.18]
[1726231051944,3.7841,132.13,132.1,3.7846]
[1726231052645,5.2013,132.14,132.07,18.18]
[1726231053146,5.2013,132.14,132.1,3.7845]
[1726231053542,3.784,132.13,132.1,3.7845]
[1726231054141,3.7843,132.12,132.09,3.7849]
[1726231054342,1.4175,132.14,132.06,22.2319]
[1726231054646,19.5975,132.14,132.06,22.2319]
[1726231055038,3.7844,132.12,132.08,3.7852]
[1726231056346,3.7844,132.12,132.09,3.7849]
[1726231056741,3.7841,132.13,132.08,18.18]
[1726231056940,3.7841,132.13,132.1,3.7846]
[1726231057143,1.4175,132.14,132.06,22.2319]
[1726231057346,3.7844,132.12,132.06,22.2319]
[1726231057649,3.7844,132.12,132.09,3.7849]
[1726231058152,3.7845,132.11,132.08,3.7852]
[1726231058348,3.7845,132.11,132.06,2.7357]
[1726231058649,3.7851,132.09,132.06,2.7357]
[1726231058842,18.18,132.12,132.06,2.7357]
[1726231059447,3.7849,132.1,132.07,3.7855]
[1726231059652,3.7849,132.1,132.06,2.7357]
[1726231060241,19.5975,132.14,132.06,20.9157]
[1726231060648,3.7846,132.11,132.08,3.7852]
[1726231061147,19.5975,132.14,132.08,3.7852]
[1726231062044,3.7846,132.11,132.08,3.7852]
[1726231063859,3.7848,132.1,132.08,3.7852]
[1726231064051,18.18,132.12,132.07,3.7855]
[1726231064554,3.7849,132.1,132.07,3.7855]
[1726231064747,18.18,132.12,132.06,6.5215]
[1726231065053,3.785,132.1,132.06,2.7357]
[1726231065252,3.785,132.1,132.07,3.7856]
[1726231065752,3.7846,132.11,132.06,2.7357]
[1726231065950,1.4175,132.14,132.06,20.9157]
[1726231066447,1.4175,132.14,132.08,3.7851]
[1726231066843,3.7845,132.11,132.08,3.7851]
[1726231067547,3.7843,132.12,132.09,3.785]
[1726231067853,21.96712121,132.15,132.06,2.7357]
[1726231067854,21.96712121,132.15,132.06,20.9157]
[1726231068047,3.7842,132.13,132.1,3.7846]
[1726231068545,3.7842,132.13,132.11,3.7844]
[1726231069456,3.7842,132.13,132.1,3.7846]
[1726231069857,18.18,132.15,132.1,3.7846]
[1726231070748,22.00602438,132.15,132.1,3.7846]
[1726231070949,3.7842,132.13,132.1,3.7846]
[1726231071454,3.7844,132.12,132.1,3.7846]
[1726231075664,3.7841,132.13,132.11,3.7845]
[1726231075864,18.18,132.16,132.08,18.18]
[1726231076255,3.7837,132.14,132.12,3.7841]
[1726231077659,3.7837,132.14,132.11,3.7844]
[1726231078160,3.7839,132.13,132.11,3.7844]
[1726231078462,18.18,132.16,132.09,3.7849]
[1726231078871,3.7843,132.12,132.08,18.18]
[1726231079665,3.784,132.13,132.1,3.7846]
[1726231080558,3.784,132.13,132.11,3.7845]
[1726231081268,3.784,132.13,132.1,3.7846]
[1726231083571,3.7842,132.12,132.1,3.7846]
[1726231083769,3.7842,132.12,132.09,3.7849]
[1726231083970,3.7842,132.12,132.07,19.5375]
[1726231084172,3.784,132.13,132.1,3.7846]
[1726231085273,18.18,132.14,132.09,3.7849]
[1726231085666,3.7843,132.12,132.09,3.7849]
[1726231086969,3.7843,132.12,132.07,19.5375]
[1726231087466,3.7841,132.13,132.1,3.7846]
[1726231088070,15.4241,132.13,132.1,3.7846]
[1726231088567,3.7842,132.12,132.1,3.7846]
[1726231089474,15.4241,132.13,132.1,3.7846]
[1726231090272,3.7844,132.12,132.09,15.4249]
[1726231090768,3.7844,132.12,132.1,3.7848]
[1726231091873,3.7844,132.12,132.09,3.7849]
[1726231092270,3.7845,132.11,132.09,3.7849]
[1726231092468,11.64,132.12,132.08,3.7852]
[1726231092665,3.87003938,132.15,132.08,3.7852]
[1726231092666,11.64,132.11,132.08,3.7852]
[1726231092862,15.4246,132.11,132.08,3.7852]
[1726231093366,3.7848,132.1,132.08,3.7852]
[1726231093970,15.4246,132.11,132.08,3.7852]
[1726231094168,3.72831932,132.14,132.08,11.64]
[1726231094368,15.424,132.13,132.09,11.64]
[1726231094769,15.424,132.13,132.1,3.7846]
[1726231095163,3.784,132.13,132.1,3.7846]
[1726231097475,1.3948,132.17,132.1,18.19]
[1726231097870,3.7835,132.15,132.12,3.7841]
[1726231100367,18.36511946,132.17,132.16,3.7831]
[1726231100671,1.395,132.21,132.11,2.7653]
[1726231100864,19.585,132.21,132.13,18.19]
[1726231101677,1.395,132.21,132.13,18.19]
[1726231101877,3.79830175,132.22,132.15,18.19]
[1726231102380,3.7818,132.21,132.17,3.7827]
[1726231102677,3.782,132.2,132.16,3.7829]
[1726231102887,3.79830175,132.22,132.14,18.19]
[1726231103271,3.7822,132.2,132.15,3.7831]
[1726231105574,3.7822,132.2,132.16,3.7831]
[1726231108183,3.7823,132.19,132.15,3.7833]
[1726231108390,18.19,132.21,132.14,18.19]
[1726231108794,3.7822,132.19,132.15,3.7833]
[1726231111087,3.7827,132.18,132.14,21.9735]
[1726231111283,18.19,132.19,132.12,19.5475]
[1726231111489,18.19,132.19,132.12,1.3575]
[1726231111986,18.19,132.19,132.12,19.5475]
[1726231111987,22.00046097,132.19,132.12,19.5475]
[1726231112486,1.3674,132.2,132.14,18.19]
[1726231112886,3.7827,132.18,132.15,3.7833]
[1726231113087,5.23349643,132.2,132.14,18.19]
[1726231113486,3.7828,132.17,132.14,21.9735]
[1726231113683,5.23349643,132.2,132.12,19.5475]
[1726231113991,18.19,132.19,132.12,19.5475]
[1726231114892,3.7832,132.16,132.13,3.7838]
[1726231115488,3.7835,132.15,132.12,3.784]
[1726231116189,3.7832,132.16,132.13,3.7839]
[1726231116889,3.7834,132.15,132.12,3.7841]
[1726231117195,18.19,132.18,132.11,2.7653]
[1726231117388,3.7835,132.15,132.11,6.5495]
[1726231117589,18.19,132.16,132.07,1.3694]
[1726231117799,23.42349643,132.2,132.07,1.3694]
[1726231117800,18.19,132.14,132.07,1.3694]
[1726231118598,3.7843,132.12,132.08,3.7851]
[1726231125210,3.7843,132.12,132.09,3.785]
[1726231126103,3.7843,132.12,132.09,15.425]
[1726231126301,18.34215673,132.19,132.11,11.64]
[1726231126505,11.64,132.16,132.11,11.64]
[1726231127207,11.64,132.15,132.1,11.64]
[1726231128013,11.64,132.13,132.1,11.64]
[1726231129213,3.7843,132.12,132.1,11.64]
[1726231130514,15.4241,132.13,132.1,15.4247]
[1726231130709,3.7841,132.13,132.1,15.4247]
[1726231132116,15.4238,132.14,132.11,15.4244]
[1726231132315,3.7838,132.14,132.12,11.64]
[1726231133903,7.5647,132.19,132.12,15.4242]
[1726231134107,5.23349643,132.2,132.15,11.64]
[1726231134310,16.87349643,132.2,132.15,11.64]